bitfinex-derivatives/quotes_BTCF0:USTF0_20250722
["timestamp","ask_amount","ask_price","bid_price","bid_amount"]
[1753199421405,0.3829987,119140.0,119130.0,0.980711]
[1753199421609,0.3829987,119140.0,119130.0,1.2962227]
[1753199422011,0.3829987,119140.0,119130.0,0.9354227]
[1753199422399,0.3829987,119140.0,119130.0,1.2962227]
[1753199422599,0.3829987,119140.0,119130.0,0.9354227]
[1753199423005,0.3829987,119140.0,119130.0,1.00220791]
[1753199423305,0.3829987,119140.0,119130.0,1.36300791]
[1753199423703,0.3829987,119140.0,119130.0,1.00220791]
[1753199423909,0.3829987,119140.0,119130.0,0.78865521]
[1753199424205,0.80936021,119140.0,119130.0,0.95644801]
[1753199424812,0.80936021,119140.0,119130.0,0.78865521]
[1753199426913,0.3829987,119140.0,119130.0,0.78865521]
[1753199427115,0.80936021,119140.0,119130.0,0.78865521]
[1753199429316,0.80936021,119140.0,119130.0,0.95644791]
[1753199429817,0.80936021,119140.0,119130.0,1.00175769]
[1753199430419,0.80936021,119140.0,119130.0,0.83396499]
[1753199432409,1.17016021,119140.0,119130.0,0.11709499]
[1753199432614,1.17016021,119140.0,119130.0,0.05030978]
[1753199432814,1.76428021,119140.0,119130.0,0.05030978]
[1753199433011,0.2198968,119120.0,119110.0,0.06039449]
[1753199433217,1.17018831,119120.0,119110.0,0.65447449]
[1753199434014,1.76426831,119120.0,119110.0,0.06039449]
[1753199434219,0.3830409,119110.0,119100.0,0.06039449]
[1753199434413,0.05105,119090.0,119070.0,8e-08]
[1753199434614,0.1921001,119070.0,119050.0,0.04722]
[1753199434810,0.1679055,119050.0,119040.0,0.11435103]
[1753199435013,0.2089996,119040.0,119030.0,0.49911]
[1753199435222,0.2089996,119040.0,119030.0,0.08457]
[1753199435223,1.17030111,119040.0,119030.0,0.08457]
[1753199435517,1.76438111,119040.0,119030.0,0.0002]
[1753199435717,1.3380196,119040.0,119030.0,0.0002]
[1753199436117,1.3380196,119040.0,119030.0,0.04102]
[1753199436319,1.76438111,119040.0,119030.0,0.08457]
[1753199436615,0.7439396,119040.0,119030.0,0.3047237]
[1753199436915,0.7439396,119040.0,119030.0,0.3504837]
[1753199437115,0.7439396,119040.0,119030.0,0.18255]
[1753199437314,0.3831396,119040.0,119030.0,0.3504837]
[1753199437517,0.3831396,119040.0,119030.0,0.3574837]
[1753199437713,0.3831396,119040.0,119030.0,0.7182837]
[1753199437918,0.3831396,119040.0,119030.0,0.7262637]
[1753199438622,0.3831396,119040.0,119030.0,1.22664855]
[1753199439117,0.3831396,119040.0,119030.0,0.7262637]
[1753199439318,0.3091896,119040.0,119030.0,0.7262637]
[1753199441822,0.3841196,119040.0,119030.0,1.09875]
[1753199442022,0.3841196,119040.0,119030.0,0.45737]
[1753199442224,0.3841196,119040.0,119030.0,1.05153]
[1753199442818,0.3841196,119040.0,119030.0,0.40466]
[1753199443019,0.3841196,119040.0,119030.0,0.0122]
[1753199443324,1.24530445,119040.0,119030.0,0.0122]
[1753199445522,1.24530445,119040.0,119030.0,0.0102]
[1753199445724,1.24530445,119040.0,119030.0,0.0092]
[1753199447626,0.7449196,119040.0,119030.0,0.0092]
[1753199447829,1.24530445,119040.0,119030.0,0.0092]
[1753199449627,0.7449196,119040.0,119030.0,0.0092]
[1753199449930,1.83950445,119040.0,119030.0,0.0092]
[1753199453530,0.7449196,119040.0,119030.0,0.04954]
[1753199453736,1.83946445,119040.0,119030.0,0.09344]
[1753199453932,0.3841196,119040.0,119030.0,0.6696137]
[1753199454138,0.3841196,119040.0,119030.0,0.7209637]
[1753199454339,0.3841196,119040.0,119030.0,1.23100855]
[1753199454536,0.3841196,119040.0,119030.0,0.7306237]
[1753199454734,0.3841196,119040.0,119030.0,1.23100855]
[1753199455834,0.44204007,119050.0,119040.0,0.3606096]
[1753199456141,0.33436077,119050.0,119040.0,1.81591445]
[1753199456334,0.01708507,119050.0,119040.0,1.81591445]
[1753199456539,0.01708507,119050.0,119040.0,2.07421222]
[1753199456941,0.01708507,119050.0,119040.0,2.07921222]
[1753199457341,0.18499057,119050.0,119040.0,2.07921222]
[1753199458042,0.01708507,119050.0,119040.0,2.08021222]
[1753199458243,0.01708507,119050.0,119040.0,2.08221222]
[1753199458833,0.01708507,119050.0,119040.0,2.08021222]
[1753199459136,0.01708507,119050.0,119040.0,2.08321222]
[1753199459539,0.18499057,119050.0,119040.0,1.48909222]
[1753199459844,0.18499057,119050.0,119040.0,1.91509223]
[1753199460438,0.01708507,119050.0,119040.0,1.91509223]
[1753199460742,0.01708507,119050.0,119040.0,1.92329483]
[1753199461541,0.03536568,119050.0,119040.0,1.92329483]
[1753199461844,0.03536837,119050.0,119040.0,1.92329483]
[1753199462539,0.0002,119060.0,119050.0,0.2420655]
[1753199462837,0.41718448,119070.0,119060.0,0.3178914]
[1753199463034,0.41698448,119070.0,119060.0,1.77295625]
[1753199463236,0.49191448,119070.0,119060.0,1.77295625]
[1753199463743,0.40896674,119070.0,119060.0,1.77295625]
[1753199465446,0.40896674,119070.0,119060.0,1.77595625]
[1753199466243,0.40896674,119070.0,119060.0,1.84312361]
[1753199466444,0.44152674,119070.0,119060.0,1.84312361]
[1753199467039,0.48389674,119070.0,119060.0,1.84312361]
[1753199467238,0.48389674,119070.0,119060.0,1.76943179]
[1753199468041,0.48389674,119070.0,119060.0,1.40863179]
[1753199468244,0.48389674,119070.0,119060.0,1.76943179]
[1753199468440,0.48389674,119070.0,119060.0,1.34273876]
[1753199468742,0.18969434,119070.0,119060.0,1.17555179]
[1753199468949,0.13539,119080.0,119070.0,0.3197872]
[1753199469150,0.3871694,119090.0,119080.0,0.2452231]
[1753199469344,0.3869694,119090.0,119080.0,1.10726613]
[1753199469548,0.3030436,119090.0,119080.0,1.10726613]
[1753199469751,0.3030436,119090.0,119080.0,1.70094613]
[1753199470442,0.3883736,119090.0,119080.0,0.93940303]
[1753199470647,0.3883736,119090.0,119080.0,0.9134131]
[1753199470847,0.3883736,119090.0,119080.0,0.8888831]
[1753199471647,0.3883736,119090.0,119080.0,0.8388231]
[1753199472348,0.3883736,119090.0,119080.0,1.1996231]
[1753199472650,0.3883736,119090.0,119080.0,0.8888831]
[1753199472846,0.3883736,119090.0,119080.0,1.77409967]
[1753199473046,0.3432736,119090.0,119080.0,1.41329967]
[1753199473248,0.3432736,119090.0,119080.0,1.77409967]
[1753199473652,0.3883736,119090.0,119080.0,1.77409967]
[1753199473952,0.3883736,119090.0,119080.0,1.2741731]
[1753199474553,0.40556226,119090.0,119080.0,1.2741731]
[1753199475160,0.40556226,119090.0,119080.0,1.77409967]
[1753199477851,0.40556226,119090.0,119080.0,1.2741731]
[1753199478050,0.40556226,119090.0,119080.0,1.2496831]
[1753199478248,0.40556226,119090.0,119080.0,0.8888831]
[1753199478656,0.40556226,119090.0,119080.0,1.2496831]
[1753199479048,0.16222866,119090.0,119080.0,1.77409967]
[1753199479252,0.01718866,119090.0,119080.0,1.77409967]
[1753199479864,0.01718866,119090.0,119080.0,1.86919247]
[1753199481155,0.01718866,119090.0,119080.0,1.87219247]
[1753199481551,0.13247866,119090.0,119080.0,1.87219247]
[1753199481957,0.06530866,119090.0,119080.0,1.87219247]
[1753199482157,0.13247866,119090.0,119080.0,1.87219247]
[1753199482358,0.15237866,119090.0,119080.0,1.87219247]
[1753199483366,0.01718866,119090.0,119080.0,1.87219247]
[1753199484359,0.40555776,119090.0,119080.0,0.7786659]
[1753199484568,0.40555776,119090.0,119080.0,1.2522831]
[1753199484865,0.40555776,119090.0,119080.0,1.2022231]
[1753199485869,0.40555776,119090.0,119080.0,0.6090231]
[1753199486058,0.90548433,119090.0,119080.0,1.1248632]
[1753199486457,0.90548433,119090.0,119080.0,0.7640632]
[1753199486766,0.40555776,119090.0,119080.0,0.7640632]
[1753199486970,0.40555776,119090.0,119080.0,0.8414232]
[1753199487459,0.40555776,119090.0,119080.0,0.9159732]
[1753199488170,0.40555776,119090.0,119080.0,1.41589977]
[1753199489769,0.40555776,119090.0,119080.0,1.39140977]
[1753199489970,0.40555776,119090.0,119080.0,0.8914832]
[1753199490471,0.40555776,119090.0,119080.0,0.9159732]
[1753199490974,0.40555776,119090.0,119080.0,1.77669977]
[1753199491375,0.40555776,119090.0,119080.0,1.2767732]
[1753199493375,0.40555776,119090.0,119080.0,1.77669977]
[1753199494078,0.40524857,119090.0,119080.0,1.77669977]
[1753199495379,0.40524857,119090.0,119080.0,1.2767732]
[1753199496378,0.36014857,119090.0,119080.0,1.2767732]
[1753199496678,0.36014857,119090.0,119080.0,1.77669977]
[1753199496879,0.36014857,119090.0,119080.0,1.77645977]
[1753199497076,0.36014857,119090.0,119080.0,1.79482291]
[1753199497379,0.36014857,119090.0,119080.0,1.72142512]
[1753199497579,0.32976857,119090.0,119080.0,1.72142512]
[1753199498180,0.40529304,119090.0,119080.0,1.72142512]
[1753199498382,0.40529304,119090.0,119080.0,1.29489634]
[1753199498581,0.40529304,119090.0,119080.0,1.72142512]
[1753199499578,0.40529304,119090.0,119080.0,0.85954634]
[1753199499773,0.83182182,119090.0,119080.0,0.02136314]
[1753199499978,0.83182182,119090.0,119080.0,0.78206634]
[1753199500680,0.83182182,119090.0,119080.0,0.82463634]
[1753199500880,0.83182182,119090.0,119080.0,1.18543634]
[1753199501082,0.83182561,119090.0,119080.0,0.85671634]
[1753199501385,0.40529683,119090.0,119080.0,0.85671634]
[1753199502685,0.83182561,119090.0,119080.0,0.85671634]
[1753199502880,1.19262561,119090.0,119080.0,0.85671634]
[1753199503080,0.83182561,119090.0,119080.0,0.85671634]
[1753199504686,0.81489788,119090.0,119080.0,0.81227298]
[1753199505987,1.17569788,119090.0,119080.0,0.81227298]
[1753199506589,1.17569788,119090.0,119080.0,0.64440978]
[1753199506989,1.17569788,119090.0,119080.0,0.81227298]
[1753199507688,1.17569788,119090.0,119080.0,0.88692298]
[1753199508388,0.81489788,119090.0,119080.0,0.88692298]
[1753199509592,0.3883691,119090.0,119080.0,0.88692298]
[1753199509987,0.3883691,119090.0,119080.0,1.31345176]
[1753199510292,0.3883691,119090.0,119080.0,0.88692298]
[1753199511795,0.81489788,119090.0,119080.0,0.71905978]
[1753199512190,1.17569788,119090.0,119080.0,0.71905978]
[1753199512593,0.7491691,119090.0,119080.0,0.71905978]
[1753199512792,1.17569788,119090.0,119080.0,0.71905978]
[1753199513093,1.17569788,119090.0,119080.0,0.64440978]
[1753199513690,0.7491691,119090.0,119080.0,0.64440978]
[1753199513991,1.17569788,119090.0,119080.0,0.05156978]
[1753199514192,1.17569788,119090.0,119080.0,0.03320664]
[1753199515293,1.24266104,119090.0,119080.0,0.03320664]
[1753199515694,1.83514104,119090.0,119080.0,0.03320664]
[1753199516098,1.24266104,119090.0,119080.0,0.03320664]
[1753199516801,1.24266104,119090.0,119080.0,0.003]
[1753199518400,1.24266104,119090.0,119080.0,0.1708632]
[1753199518803,1.24266104,119090.0,119080.0,0.003]
[1753199522103,1.24266104,119090.0,119080.0,0.1708632]
[1753199522597,0.81613226,119090.0,119080.0,0.1708632]
[1753199522801,0.7491691,119090.0,119080.0,0.2455132]
[1753199523202,1.17569788,119090.0,119080.0,0.2455132]
[1753199523404,0.17684,119090.0,119080.0,0.2029432]
[1753199523607,0.02635659,119120.0,119110.0,0.03208]
[1753199523898,0.07556659,119120.0,119110.0,0.78857155]
[1753199524102,0.13327,119120.0,119110.0,0.78857155]
[1753199524303,0.13327,119120.0,119110.0,1.21510033]
[1753199524504,0.15023937,119120.0,119110.0,0.69322759]
[1753199524701,0.40578617,119120.0,119110.0,0.33242759]
[1753199524895,0.40578617,119120.0,119110.0,0.45407669]
[1753199525203,0.40578617,119120.0,119110.0,1.23945749]
[1753199525403,0.3868168,119120.0,119110.0,1.26208481]
[1753199525906,0.39510401,119120.0,119110.0,0.87865749]
[1753199526200,0.3868168,119120.0,119110.0,1.23945749]
[1753199526402,0.3868168,119120.0,119110.0,0.87865749]
[1753199526607,0.3868168,119120.0,119110.0,1.23945749]
[1753199527707,0.3868168,119120.0,119110.0,0.01862669]
[1753199528008,1.24729758,119120.0,119110.0,0.18644759]
[1753199529005,0.57981,119120.0,119110.0,0.18644759]
[1753199529201,0.57981,119120.0,119110.0,0.25970759]
[1753199529900,0.21901,119120.0,119110.0,0.62050759]
[1753199530105,0.3868168,119120.0,119110.0,0.62050759]
[1753199530706,0.21901,119120.0,119110.0,0.68981759]
[1753199530907,0.17497,119120.0,119110.0,0.71244491]
[1753199531508,0.3843968,119120.0,119110.0,0.71109548]
[1753199531902,0.21659,119120.0,119110.0,0.71109548]
[1753199532101,0.21659,119120.0,119110.0,0.73502548]
[1753199532908,0.3843968,119120.0,119110.0,0.73502548]
[1753199533308,0.3843968,119120.0,119110.0,0.76516487]
[1753199534111,0.3843968,119120.0,119110.0,0.74123487]
[1753199534306,0.3843968,119120.0,119110.0,0.09397397]
[1753199534508,1.24487758,119120.0,119110.0,0.03013939]
[1753199534703,0.7451968,119120.0,119110.0,0.02986326]
[1753199535010,0.7451968,119120.0,119110.0,0.07506344]
[1753199535204,1.24487758,119120.0,119110.0,0.07506344]
[1753199535607,1.24487758,119120.0,119110.0,0.24288434]
[1753199536307,0.7451968,119120.0,119110.0,0.24288434]
[1753199536506,0.3843968,119120.0,119110.0,0.93443434]
[1753199536813,0.3843968,119120.0,119110.0,0.89023416]
[1753199537606,0.88407758,119120.0,119110.0,0.72241326]
[1753199537806,0.7451968,119120.0,119110.0,0.72241326]
[1753199538012,1.24487758,119120.0,119110.0,0.65082326]
[1753199538212,1.24487758,119120.0,119110.0,0.6970072]
[1753199538505,1.24487758,119120.0,119110.0,0.0770472]
[1753199539409,0.251345,119100.0,119090.0,0.12768655]
[1753199539608,1.24471578,119100.0,119090.0,0.74852655]
[1753199540113,0.88391578,119100.0,119090.0,0.92575565]
[1753199540313,1.24471578,119100.0,119090.0,0.75790655]
[1753199540513,0.88391578,119100.0,119090.0,0.92575565]
[1753199540713,1.24471578,119100.0,119090.0,0.75990655]
[1753199541213,1.24471578,119100.0,119090.0,0.76290655]
[1753199542308,0.195735,119100.0,119090.0,1.00654555]
[1753199542507,0.309735,119100.0,119090.0,1.91030633]
[1753199542717,0.384235,119100.0,119090.0,1.91030633]
[1753199542914,0.384235,119100.0,119090.0,1.41062555]
[1753199543214,0.281835,119100.0,119090.0,1.41062555]
[1753199543515,0.167835,119100.0,119090.0,1.85043733]
[1753199543711,0.3659422,119110.0,119100.0,0.2488049]
[1753199543911,0.2818209,119110.0,119100.0,1.25818624]
[1753199544311,0.2155409,119110.0,119100.0,1.25818624]
[1753199544613,0.1678209,119110.0,119100.0,1.25818624]
[1753199544809,0.365925,119120.0,119110.0,0.1678209]
[1753199545008,0.365725,119120.0,119110.0,1.19793168]
[1753199545213,0.365725,119120.0,119110.0,0.6982509]
[1753199546009,0.468125,119120.0,119110.0,0.1457]
[1753199546210,0.468125,119120.0,119110.0,0.6289409]
[1753199546410,0.468125,119120.0,119110.0,0.2681409]
[1753199546813,0.468125,119120.0,119110.0,0.6289409]
[1753199547010,0.468125,119120.0,119110.0,0.2681409]
[1753199547210,0.468125,119120.0,119110.0,0.9110609]
[1753199547408,0.468125,119120.0,119110.0,0.9103009]
[1753199548620,0.468125,119120.0,119110.0,0.9101409]
[1753199549313,0.468125,119120.0,119110.0,0.9555209]
[1753199550318,0.468125,119120.0,119110.0,1.3163209]
[1753199551214,0.468125,119120.0,119110.0,0.9101409]
[1753199551818,0.96780578,119120.0,119110.0,0.66989]
[1753199552014,1.32860578,119120.0,119110.0,0.00938]
[1753199552214,0.3842209,119110.0,119100.0,0.1965649]
[1753199552414,0.3842209,119110.0,119100.0,0.8369649]
[1753199552617,0.3842209,119110.0,119100.0,1.2693549]
[1753199552816,0.3842209,119110.0,119100.0,0.02873]
[1753199553017,0.88390168,119110.0,119100.0,0.6499]
[1753199553218,0.88390168,119110.0,119100.0,0.8177349]
[1753199553419,0.88390168,119110.0,119100.0,0.8187349]
[1753199553618,0.3842209,119110.0,119100.0,0.9096749]
[1753199554419,0.3842209,119110.0,119100.0,0.9116749]
[1753199559423,0.3842209,119110.0,119100.0,1.002281]
[1753199559620,0.3842209,119110.0,119100.0,0.8344461]
[1753199559813,0.88390168,119110.0,119100.0,0.8344461]
[1753199560220,0.88390168,119110.0,119100.0,0.7932661]
[1753199560520,0.88390168,119110.0,119100.0,0.70248634]
[1753199561121,0.88390168,119110.0,119100.0,0.03323634]
[1753199562022,0.0613897,119100.0,119090.0,0.0452896]
[1753199562217,0.2692772,119070.0,119060.0,0.01895125]
[1753199562412,1.76715798,119070.0,119060.0,0.01895125]
[1753199562619,0.1989854,119050.0,119040.0,0.0754622]
[1753199562818,1.83143643,119050.0,119040.0,0.0754622]
[1753199563017,1.83143643,119050.0,119040.0,0.0847222]
[1753199563418,1.19391643,119050.0,119040.0,0.1771795]
[1753199563619,1.19391643,119050.0,119040.0,0.1950995]
[1753199563920,1.83091643,119050.0,119040.0,0.2658995]
[1753199564122,1.83091643,119050.0,119040.0,0.09798]
[1753199564620,1.19391643,119050.0,119040.0,0.2658995]
[1753199564823,1.83059643,119050.0,119040.0,0.09798]
[1753199565522,1.83059643,119050.0,119040.0,0.10398]
[1753199565915,1.83059643,119050.0,119040.0,0.10898]
[1753199566525,1.83059643,119050.0,119040.0,0.03818]
[1753199566715,1.83872823,119050.0,119040.0,0.03818]
[1753199567819,1.33904745,119050.0,119040.0,0.03818]
[1753199568020,1.83872823,119050.0,119040.0,0.03818]
[1753199568221,1.83872823,119050.0,119040.0,0.02026]
[1753199568421,1.83872823,119050.0,119040.0,0.011]
[1753199569422,1.83872823,119050.0,119040.0,0.01]
[1753199571426,1.83872823,119050.0,119040.0,0.004]
[1753199571621,1.83872823,119050.0,119040.0,0.008]
[1753199573930,1.33904745,119050.0,119040.0,0.008]
[1753199574130,1.83872823,119050.0,119040.0,0.008]
[1753199577030,0.3112295,119040.0,119030.0,0.0002]
[1753199577231,1.23930028,119040.0,119030.0,0.0002]
[1753199578327,1.23930028,119040.0,119030.0,0.0062]
[1753199579031,1.23930028,119040.0,119030.0,0.0092]
[1753199580530,0.3788195,119040.0,119030.0,0.6359136]
[1753199580730,0.3788195,119040.0,119030.0,1.83781438]
[1753199580930,0.3084995,119040.0,119030.0,1.83781438]
[1753199581134,0.3084995,119040.0,119030.0,1.3381336]
[1753199581628,0.3084995,119040.0,119030.0,0.17884]
[1753199581629,0.7201895,119040.0,119030.0,0.17884]
[1753199581827,1.23930028,119040.0,119030.0,0.0092]
[1753199582238,1.86978028,119040.0,119030.0,0.0092]
[1753199582534,1.86978028,119040.0,119030.0,0.01846]
[1753199582736,1.86978028,119040.0,119030.0,0.03638]
[1753199582928,1.86978028,119040.0,119030.0,0.10718]
[1753199583636,1.86978028,119040.0,119030.0,0.03638]
[1753199583934,1.86978028,119040.0,119030.0,0.0092]
[1753199586635,1.86846028,119040.0,119030.0,0.0092]
[1753199587129,2.22926028,119040.0,119030.0,0.0092]
[1753199588432,2.22926028,119040.0,119030.0,0.0042]
[1753199590238,2.22794028,119040.0,119030.0,0.0042]
[1753199594341,2.22794028,119040.0,119030.0,0.0032]
[1753199596136,0.1679477,119020.0,119010.0,0.0754622]
[1753199596339,1.59920848,119020.0,119010.0,0.0754622]
[1753199596737,0.3779419,119010.0,119000.0,0.36696185]
[1753199596937,1.23842268,119010.0,119000.0,0.36696185]
[1753199597541,1.24676551,119010.0,119000.0,0.29149965]
[1753199598040,0.7387419,119010.0,119000.0,0.33771965]
[1753199598240,0.7387419,119010.0,119000.0,0.36220965]
[1753199598439,0.7387419,119010.0,119000.0,0.43767185]
[1753199598838,0.7387419,119010.0,119000.0,0.41818185]
[1753199599030,1.23842268,119010.0,119000.0,0.41818185]
[1753199599341,1.23842268,119010.0,119000.0,0.34271965]
[1753199599539,0.7387419,119010.0,119000.0,0.36720965]
[1753199599734,0.3598619,119010.0,119000.0,0.80347185]
[1753199599937,0.3219846,119020.0,119010.0,0.3438419]
[1753199600143,0.167957,119020.0,119010.0,1.27978488]
[1753199600339,0.167957,119020.0,119010.0,2.32179288]
[1753199600543,0.213197,119020.0,119010.0,1.1981521]
[1753199600732,0.359857,119020.0,119010.0,0.7801041]
[1753199600937,0.87761778,119020.0,119010.0,1.3335141]
[1753199601445,0.377937,119020.0,119010.0,1.3335141]
[1753199602048,0.377937,119020.0,119010.0,1.3797341]
[1753199602246,0.377937,119020.0,119010.0,1.4042241]
[1753199602446,0.377937,119020.0,119010.0,0.7046419]
[1753199602641,0.377937,119020.0,119010.0,1.3280419]
[1753199603141,0.377937,119020.0,119010.0,0.7046419]
[1753199603343,0.377937,119020.0,119010.0,0.5904919]
[1753199603542,0.377937,119020.0,119000.0,0.73515205]
[1753199603543,0.1679619,119010.0,119000.0,0.73515205]
[1753199603847,0.87762268,119010.0,119000.0,1.24638635]
[1753199604648,0.3779419,119010.0,119000.0,1.39287635]
[1753199604946,0.2798019,119010.0,119000.0,1.39287635]
[1753199605348,0.2798019,119010.0,119000.0,0.76999635]
[1753199605547,0.2798019,119010.0,119000.0,1.39259635]
[1753199606047,0.2798019,119010.0,119000.0,1.39559635]
[1753199606248,0.2798019,119010.0,119000.0,1.4560418]
[1753199606444,0.2798019,119010.0,119000.0,1.4510418]
[1753199606749,0.2798019,119010.0,119000.0,1.4520418]
[1753199606949,0.2798019,119010.0,119000.0,1.39659635]
[1753199607551,0.3598619,119010.0,119000.0,0.77399635]
[1753199607744,0.87762268,119010.0,119000.0,1.32496635]
[1753199608750,0.87762268,119010.0,119000.0,0.13252365]
[1753199608951,0.87762268,119010.0,119000.0,0.03716365]
[1753199609147,0.805243,119010.0,119000.0,0.82641965]
[1753199609355,0.805243,119010.0,119000.0,0.73390585]
[1753199609651,0.805243,119010.0,119000.0,0.75348585]
[1753199609846,0.805243,119010.0,119000.0,0.92146185]
[1753199610247,0.805243,119010.0,119000.0,0.99724185]
[1753199611152,0.805243,119010.0,119000.0,1.06795185]
[1753199611547,0.2798019,119010.0,119000.0,1.41979075]
[1753199611954,0.2798019,119010.0,119000.0,1.09813673]
[1753199612354,0.2798019,119010.0,119000.0,1.52543783]
[1753199612657,0.2798019,119010.0,119000.0,1.09813673]
[1753199612855,0.2798019,119010.0,119000.0,1.41979075]
[1753199613258,0.2798019,119010.0,119000.0,0.99248965]
[1753199614953,0.2798019,119010.0,119000.0,0.47685673]
[1753199615154,0.3779419,119010.0,119000.0,1.07132673]
[1753199615353,1.23929446,119010.0,119000.0,0.16239073]
[1753199615555,1.23929446,119010.0,119000.0,0.73157643]
[1753199616055,0.7387419,119010.0,119000.0,0.73157643]
[1753199616259,1.23929446,119010.0,119000.0,0.75115643]
[1753199616460,1.23929446,119010.0,119000.0,0.91913243]
[1753199616657,1.23929446,119010.0,119000.0,0.99491243]
[1753199616856,0.87849446,119010.0,119000.0,1.06562243]
[1753199617053,0.3779419,119010.0,119000.0,1.06562243]
[1753199618567,0.87849446,119010.0,119000.0,1.06562243]
[1753199619064,0.3779419,119010.0,119000.0,1.06562243]
[1753199619264,0.396297,119010.0,119000.0,0.99004965]
[1753199620266,0.89684956,119010.0,119000.0,0.99004965]
[1753199620866,0.396297,119010.0,119000.0,0.99004965]
[1753199622370,0.3779419,119010.0,119000.0,0.99004965]
[1753199623869,0.87849446,119010.0,119000.0,0.99004965]
[1753199624065,0.87849446,119010.0,119000.0,0.96555965]
[1753199624869,0.3779419,119010.0,119000.0,0.98920965]
[1753199625973,0.87849446,119010.0,119000.0,0.98920965]
[1753199626874,0.3779419,119010.0,119000.0,0.98920965]
[1753199627776,0.3598619,119010.0,119000.0,0.98920965]
[1753199628880,0.3784419,119010.0,119000.0,0.98920965]
[1753199630173,0.2292456,119020.0,119010.0,0.2212819]
[1753199630373,0.2776777,119020.0,119010.0,1.20099446]
[1753199630972,0.04864,119020.0,119010.0,1.20099446]
[1753199631178,0.37855856,119030.0,119020.0,0.3396277]
[1753199631378,0.47766856,119030.0,119020.0,1.3165877]
[1753199632973,0.47766856,119030.0,119020.0,1.3185877]
[1753199633378,0.49514439,119030.0,119020.0,1.3185877]
[1753199633777,0.49514439,119030.0,119020.0,1.3205877]
[1753199636880,0.39583439,119030.0,119020.0,1.13146207]
[1753199637175,0.33637316,119030.0,119020.0,1.74726207]
[1753199637377,0.03419835,119030.0,119020.0,1.74726207]
[1753199637581,0.20213195,119030.0,119020.0,1.8349543]
[1753199637781,0.18464786,119030.0,119020.0,1.2191543]
[1753199637980,0.29437786,119030.0,119020.0,1.40771993]
[1753199638280,0.29437786,119030.0,119020.0,1.8347543]
[1753199638480,0.29437786,119030.0,119020.0,1.84290876]
[1753199638681,0.29437786,119030.0,119020.0,1.40779993]
[1753199638885,0.29437786,119030.0,119020.0,1.8348343]
[1753199639186,0.06535426,119030.0,119020.0,1.8348343]
[1753199639386,0.23328786,119030.0,119020.0,1.8348343]
[1753199640485,0.29437786,119030.0,119020.0,1.8348343]
[1753199641484,0.29437786,119030.0,119020.0,1.2191543]
[1753199641791,0.2776636,119030.0,119020.0,1.74722207]
[1753199642088,0.04864,119030.0,119020.0,1.74722207]
[1753199642285,0.3618261,119040.0,119030.0,0.2517836]
[1753199642488,0.3616261,119040.0,119030.0,0.76398797]
[1753199642791,0.3920661,119040.0,119030.0,0.76398797]
[1753199642985,0.4609361,119040.0,119030.0,0.3369536]
[1753199643583,0.4609361,119040.0,119030.0,0.3379536]
[1753199644489,0.4609361,119040.0,119030.0,0.3389536]
[1753199644685,0.88797047,119040.0,119030.0,0.3389536]
[1753199644884,0.88797047,119040.0,119030.0,0.2729436]
[1753199645288,1.24877047,119040.0,119030.0,0.002]
[1753199645588,0.47839286,119040.0,119030.0,0.7954336]
[1753199645788,0.90542723,119040.0,119030.0,0.8145936]
[1753199646087,0.90542723,119040.0,119030.0,0.9547136]
[1753199646583,0.90542723,119040.0,119030.0,0.8887036]
[1753199647891,0.47839286,119040.0,119030.0,0.9322036]
[1753199648592,0.47839286,119040.0,119030.0,0.8887036]
[1753199648991,0.90542723,119040.0,119030.0,0.8887036]
[1753199649493,0.47839286,119040.0,119030.0,0.8887036]
[1753199649687,0.90542723,119040.0,119030.0,0.8887036]
[1753199650091,0.88797047,119040.0,119030.0,0.8887036]
[1753199650290,1.26624098,119040.0,119030.0,0.2729436]
[1753199650493,1.26624098,119040.0,119030.0,0.8888636]
[1753199651194,1.26624098,119040.0,119030.0,0.7955936]
[1753199651394,0.41784331,119040.0,119030.0,1.39765519]
[1753199651697,0.86381768,119040.0,119030.0,0.90592082]
[1753199652096,0.43678331,119040.0,119030.0,0.90592082]
[1753199653295,0.43678331,119040.0,119030.0,0.94867082]
[1753199653697,0.43678331,119040.0,119030.0,1.39765519]
[1753199656400,0.43678331,119040.0,119030.0,0.97062082]
[1753199657298,0.41784331,119040.0,119030.0,0.97062082]
[1753199657795,0.43678331,119040.0,119030.0,0.97062082]
[1753199658101,0.43678331,119040.0,119030.0,1.39765519]
[1753199658700,0.43678331,119040.0,119030.0,0.97062082]
[1753199659004,0.43678331,119040.0,119030.0,1.39765519]
[1753199660296,0.86381768,119040.0,119030.0,0.90592082]
[1753199660501,0.86381768,119040.0,119030.0,0.29000082]
[1753199660798,0.86381768,119040.0,119030.0,0.73814722]
[1753199661004,0.86381768,119040.0,119030.0,0.64624722]
[1753199661702,0.86381768,119040.0,119030.0,0.66567722]
[1753199661904,1.20714717,119040.0,119030.0,0.67644613]
[1753199662105,1.20714717,119040.0,119030.0,0.63650722]
[1753199662299,1.20714717,119040.0,119030.0,0.63690722]
[1753199663004,0.7801128,119040.0,119030.0,0.63690722]
[1753199663205,1.20714717,119040.0,119030.0,0.63690722]
[1753199663799,1.20714717,119040.0,119030.0,0.63590722]
[1753199664002,1.20814717,119040.0,119030.0,0.63590722]
[1753199664805,1.20814717,119040.0,119030.0,0.63490722]
[1753199664998,1.20814717,119040.0,119030.0,0.66510613]
[1753199668807,1.20814717,119040.0,119030.0,0.84247973]
[1753199669307,1.20814717,119040.0,119030.0,0.67454613]
[1753199669804,1.20814717,119040.0,119030.0,0.69397613]
[1753199670008,1.20814717,119040.0,119030.0,0.86190973]
[1753199670608,1.20814717,119040.0,119030.0,0.31789973]
[1753199670805,1.20814717,119040.0,119030.0,0.05806613]
[1753199671605,1.20814717,119040.0,119030.0,0.04862613]
[1753199671804,0.1679477,119020.0,119010.0,0.11615801]
[1753199672010,1.16925207,119020.0,119010.0,0.67135801]
[1753199672503,1.16925207,119020.0,119010.0,0.83931991]
[1753199672709,0.80845207,119020.0,119010.0,0.85874991]
[1753199672904,1.16925207,119020.0,119010.0,0.85874991]
[1753199673110,1.16925207,119020.0,119010.0,0.86074991]
[1753199673806,1.16925207,119020.0,119010.0,0.69478801]
[1753199674410,1.16925207,119020.0,119010.0,0.67535801]
[1753199675009,1.16925207,119020.0,119010.0,0.67435801]
[1753199675204,1.16925207,119020.0,119010.0,0.84231991]
[1753199675404,1.16925207,119020.0,119010.0,0.69378801]
[1753199678203,1.16925207,119020.0,119010.0,0.69278801]
[1753199678815,1.16925207,119020.0,119010.0,0.67335801]
[1753199679006,1.16925207,119020.0,119010.0,0.04711801]
[1753199679319,1.16925207,119020.0,119010.0,0.002]
[1753199680409,1.16925207,119020.0,119010.0,0.02947]
[1753199681107,1.16925207,119020.0,119010.0,0.01116]
[1753199681314,1.16925207,119020.0,119010.0,0.002]
[1753199682215,0.3750219,119010.0,119000.0,0.06347166]
[1753199682411,1.77853627,119010.0,119000.0,0.06347166]
[1753199682810,1.77853627,119010.0,119000.0,0.01835365]